bitfinex/quotes_SOLUSD_20251201
["timestamp","ask_amount","ask_price","bid_price","bid_amount"]
[1764612584060,8.92,124.49,124.48,15.45576087]
[1764612585258,8.92,124.49,124.48,23.48917989]
[1764612586266,8.92,124.49,124.48,8.03341902]
[1764612587644,8.92,124.49,124.48,15.45576087]
[1764612588646,8.92,124.49,124.48,23.48917989]
[1764612589069,83.92,124.51,124.48,23.48917989]
[1764612591245,8.92,124.51,124.49,15.45576087]
[1764612592094,90.45576087,124.5,124.47,8.03372524]
[1764612592294,8.92,124.49,124.47,8.03372524]
[1764612595097,8.92,124.49,124.46,23.59013093]
[1764612595741,8.92,124.49,124.46,8.13437006]
[1764612597623,90.45576087,124.48,124.46,0.1]
[1764612597827,8.9,124.47,124.46,0.1]
[1764612601004,75.0,124.5,124.46,14.15249929]
[1764612601210,8.9,124.49,124.46,14.15249929]
[1764612601831,0.14216157,124.53,124.46,14.15249929]
[1764612601832,75.0,124.54,124.48,14.05249929]
[1764612602035,16.308864,124.52,124.48,14.05249929]
[1764612602337,8.9,124.51,124.49,8.03277371]
[1764612603623,8.9,124.51,124.49,13.0743886]
[1764612603939,8.9,124.51,124.49,8.03277371]
[1764612604620,80.04161489,124.54,124.49,13.0743886]
[1764612604825,8.9,124.53,124.5,5.04161489]
[1764612606031,8.9,124.53,124.49,13.0743886]
[1764612606834,8.9,124.53,124.5,5.04161489]
[1764612607933,25.11880892,124.56,124.52,5.04161489]
[1764612608135,8.9,124.55,124.52,5.04161489]
[1764612608341,8.9,124.55,124.51,5.04161489]
[1764612608540,8.9,124.55,124.52,5.04161489]
[1764612608920,8.9,124.55,124.52,13.07198765]
[1764612609232,8.9,124.55,124.52,8.03037276]
[1764612609816,75.0,124.58,124.54,5.04161489]
[1764612610127,8.9,124.57,124.54,5.04161489]
[1764612610849,80.04161489,124.6,124.55,5.04161489]
[1764612611048,8.9,124.59,124.57,8.02761499]
[1764612611356,27.34282643,124.65,124.58,5.04161489]
[1764612611357,80.04161489,124.64,124.58,5.04161489]
[1764612611651,75.0,124.66,124.62,5.04161489]
[1764612611827,8.9,124.65,124.62,5.04161489]
[1764612612027,8.9,124.65,124.61,5.04161489]
[1764612612444,8.9,124.65,124.61,14.01406631]
[1764612612651,8.9,124.65,124.62,14.01406631]
[1764612612955,8.9,124.65,124.62,22.0379562]
[1764612613129,8.9,124.65,124.61,22.03888558]
[1764612613731,8.9,124.65,124.62,14.01406631]
[1764612614035,8.9,124.65,124.64,14.01406631]
[1764612614341,8.9,124.67,124.64,14.01406631]
[1764612614544,8.9,124.67,124.65,14.01406631]
[1764612614946,8.9,124.67,124.65,22.03628603]
[1764612617254,8.9,124.67,124.6,16.308864]
[1764612617255,8.9,124.67,124.62,28.08537954]
[1764612617463,8.9,124.67,124.63,14.01406631]
[1764612617653,8.9,124.67,124.64,14.01406631]
[1764612618031,75.0,124.73,124.65,14.01406631]
[1764612618238,75.0,124.71,124.67,14.01406631]
[1764612618433,8.9,124.7,124.66,14.01406631]
[1764612618652,8.9,124.7,124.67,14.01406631]
[1764612619354,8.9,124.7,124.66,22.03588565]
[1764612621447,8.9,124.7,124.67,14.01406631]
[1764612621646,8.9,124.7,124.66,22.03588565]
[1764612622157,75.0,124.69,124.66,22.03588565]
[1764612623062,8.9,124.68,124.66,8.02181934]
[1764612625350,75.0,124.67,124.63,34.07272696]
[1764612625567,8.9,124.66,124.63,34.07272696]
[1764612626436,8.9,124.66,124.64,8.02285061]
[1764612626865,8.9,124.66,124.62,14.01406631]
[1764612627039,8.9,124.66,124.63,14.01406631]
[1764612627766,14.01406631,124.64,124.6,22.03974849]
[1764612627965,8.9,124.63,124.6,22.03974849]
[1764612629252,83.9,124.63,124.6,22.03974849]
[1764612630868,8.9,124.63,124.6,22.03974849]
[1764612631057,83.9,124.65,124.62,14.01406631]
[1764612631245,8.9,124.65,124.62,14.01406631]
[1764612631441,8.9,124.65,124.63,14.01406631]
[1764612631851,8.9,124.65,124.64,8.02310654]
[1764612632464,89.01406631,124.69,124.64,22.03717285]
[1764612632670,8.9,124.68,124.64,22.03717285]
[1764612632853,25.208864,124.68,124.64,22.03717285]
[1764612633456,75.0,124.66,124.61,20.06234041]
[1764612633659,83.9,124.66,124.62,22.03835545]
[1764612635151,14.01406631,124.65,124.61,14.01406631]
[1764612635359,16.308864,124.62,124.59,14.01406631]
[1764612636771,16.308864,124.62,124.6,8.02568218]
[1764612636998,16.308864,124.62,124.59,22.04020442]
[1764612637762,25.208864,124.62,124.59,22.04020442]
[1764612639759,25.208864,124.62,124.59,8.02613811]
[1764612640678,75.0,124.61,124.59,8.02613811]
[1764612640881,8.9,124.6,124.58,8.02667894]
[1764612641383,8.9,124.6,124.58,22.04074525]
[1764612641581,8.9,124.6,124.58,8.02667894]
[1764612641784,8.9,124.6,124.58,22.04074525]
[1764612642284,8.9,124.6,124.58,8.02667894]
[1764612645180,82.83143134,124.59,124.56,8.02763473]
[1764612645481,8.9,124.6,124.56,8.02763473]
[1764612645677,8.9,124.6,124.57,7.83143134]
[1764612646459,8.9,124.6,124.56,35.92971475]
[1764612646787,8.9,124.6,124.56,28.09828341]
[1764612646960,8.9,124.6,124.56,35.92971475]
[1764612647784,75.0,124.59,124.56,28.09828341]
[1764612648687,16.73143134,124.6,124.56,28.09828341]
[1764612649100,8.9,124.6,124.56,28.09828341]
[1764612650095,8.9,124.6,124.57,7.83143134]
[1764612650972,8.9,124.6,124.57,15.85849134]
[1764612651188,8.9,124.6,124.57,8.02706]
[1764612651395,8.9,124.6,124.57,15.85849134]
[1764612652009,8.9,124.6,124.56,15.8594319]
[1764612654591,78.22248163,124.59,124.55,8.68193485]
[1764612655470,8.9,124.58,124.55,0.65337443]
[1764612655675,78.22248163,124.57,124.55,0.65337443]
[1764612655882,8.9,124.56,124.55,0.65337443]
[1764612656704,8.9,124.56,124.55,8.68227848]
[1764612657203,8.9,124.58,124.55,11.90476011]
[1764612657576,16.308864,124.59,124.56,3.22248163]
[1764612657796,162.12248163,124.63,124.58,3.22248163]
[1764612657994,16.308864,124.62,124.58,3.22248163]
[1764612659695,8.9,124.61,124.58,11.2489222]
[1764612660503,8.9,124.61,124.58,15.85649971]
[1764612660900,8.16462782,124.65,124.6,7.83005914]
[1764612660901,8.80994492,124.65,124.6,7.83005914]
[1764612661101,8.9,124.65,124.62,7.83005914]
[1764612661502,8.9,124.65,124.63,7.83005914]
[1764612661702,8.9,124.65,124.62,7.83005914]
[1764612662408,8.9,124.65,124.62,15.8541109]
[1764612662992,8.9,124.65,124.62,8.02405176]
[1764612663326,16.308864,124.62,124.6,8.02551177]
[1764612664720,99.13892314,124.62,124.58,8.02664004]
[1764612665029,16.308864,124.62,124.6,7.83005914]
[1764612665221,16.308864,124.62,124.59,7.83005914]
[1764612666096,8.9,124.63,124.6,7.83005914]
[1764612666397,92.70994492,124.67,124.62,7.83005914]
[1764612666602,8.9,124.67,124.64,7.83005914]
[1764612667301,8.9,124.67,124.6,24.13892314]
[1764612667302,75.0,124.66,124.63,7.83005914]
[1764612667723,75.0,124.66,124.63,15.8533776]
[1764612668114,8.9,124.67,124.63,15.8533776]
[1764612668314,8.9,124.67,124.64,7.83005914]
[1764612669617,8.9,124.67,124.64,35.91043231]
[1764612669814,8.9,124.67,124.65,7.83005914]
[1764612670214,8.9,124.67,124.64,35.91043231]
[1764612670412,8.9,124.67,124.64,15.85266595]
[1764612670724,8.9,124.67,124.64,8.02260681]
[1764612671110,8.9,124.67,124.64,15.85266595]
[1764612671499,8.9,124.67,124.65,7.83005914]
[1764612671714,8.9,124.67,124.65,15.85220198]
[1764612672821,8.9,124.67,124.64,15.85298433]
[1764612674544,8.9,124.67,124.64,8.02292519]
[1764612674903,75.0,124.66,124.62,7.83005914]
[1764612675106,8.9,124.65,124.63,7.83005914]
[1764612675417,8.9,124.65,124.62,15.8539178]
[1764612675726,8.9,124.65,124.62,35.91490319]
[1764612678127,8.9,124.65,124.62,35.91490319]
[1764612679029,82.83005914,124.64,124.59,7.83005914]
[1764612679329,82.83005914,124.64,124.58,7.83005914]
[1764612679330,75.0,124.62,124.58,7.83005914]
[1764612679546,8.9,124.61,124.58,7.83005914]
[1764612680433,8.9,124.61,124.58,3.22132943]
[1764612681016,8.9,124.61,124.59,8.02632635]
[1764612686442,8.9,124.63,124.6,7.82959427]
[1764612686763,75.0,124.62,124.59,15.85592062]
[1764612687667,75.0,124.62,124.58,35.92266927]
[1764612688064,8.9,124.61,124.58,28.093075]
[1764612688267,16.72959427,124.61,124.58,28.093075]
[1764612689364,75.0,124.6,124.58,8.02697062]
[1764612689774,75.0,124.6,124.57,8.02761499]
[1764612689988,75.0,124.6,124.57,15.85720926]
[1764612690643,75.0,124.6,124.57,8.02761499]
[1764612693487,75.0,124.6,124.57,15.85720926]
[1764612695986,8.9,124.61,124.58,7.82959427]
[1764612696171,8.9,124.61,124.57,15.85720926]
[1764612696369,8.9,124.61,124.57,8.02761499]
[1764612696575,7.9,124.61,124.57,15.85720926]
[1764612697868,75.0,124.59,124.56,15.85764121]
[1764612698067,83.9,124.59,124.56,8.02804694]
[1764612699895,8.9,124.59,124.57,7.82959427]
[1764612700181,150.0,124.62,124.58,7.82959427]
[1764612700182,75.0,124.62,124.58,7.82959427]
[1764612700394,8.9,124.61,124.58,7.82959427]
[1764612700570,75.0,124.62,124.58,7.82959427]
[1764612700890,8.9,124.61,124.59,7.82959427]
[1764612702071,8.9,124.61,124.59,15.85539938]
[1764612702400,8.9,124.61,124.59,11.24639346]
[1764612702575,25.208864,124.63,124.59,11.24639346]
[1764612702774,25.208864,124.63,124.6,3.22058835]
[1764612704624,8.9,124.63,124.6,5.03184942]
[1764612704786,8.9,124.63,124.61,5.03184942]
[1764612705296,75.0,124.66,124.62,8.02439415]
[1764612705484,8.9,124.65,124.62,8.02439415]
[1764612705700,8.9,124.65,124.62,13.05624357]
[1764612705904,8.9,124.65,124.63,5.03184942]
[1764612706086,75.0,124.68,124.64,5.03184942]
[1764612706087,8.9,124.67,124.64,5.03184942]
[1764612706291,75.0,124.7,124.65,5.03184942]
[1764612706474,8.9,124.69,124.65,5.03184942]
[1764612706892,8.9,124.69,124.66,5.03184942]
[1764612707071,8.9,124.69,124.68,5.03184942]
[1764612707775,8.9,124.69,124.67,13.05291762]
[1764612708198,8.9,124.69,124.66,8.02175538]
[1764612708420,75.0,124.68,124.65,13.05426809]
[1764612711407,75.0,124.68,124.66,5.03184942]
[1764612712621,75.0,124.68,124.65,13.05426809]
[1764612713122,75.0,124.68,124.66,5.03184942]
[1764612713309,75.0,124.68,124.65,28.07857591]
[1764612713310,8.9,124.69,124.67,5.03184942]
[1764612713626,8.9,124.69,124.66,5.03184942]
[1764612714001,8.9,124.69,124.67,5.03184942]
[1764612715095,0.2,124.74,124.69,28.06961263]
[1764612715096,155.23184942,124.74,124.69,28.06961263]
[1764612715296,75.0,124.72,124.63,16.308864]
[1764612715496,75.0,124.72,124.64,20.05776636]
[1764612715497,75.0,124.7,124.64,20.05776636]
[1764612715701,75.0,124.7,124.66,5.03184942]
[1764612716214,8.9,124.69,124.66,5.03184942]
[1764612716402,8.9,124.69,124.64,20.05776636]
[1764612716403,8.9,124.69,124.65,5.03184942]
[1764612716802,8.9,124.69,124.66,5.03184942]
[1764612717204,8.9,124.69,124.67,8.0211759]
[1764612717705,8.9,124.69,124.67,28.07411566]
[1764612717905,8.9,124.69,124.67,33.10596508]
[1764612719027,8.9,124.69,124.67,28.07411566]
[1764612719699,8.88,124.71,124.68,5.03184942]
[1764612719901,8.88,124.71,124.69,5.03184942]
[1764612720107,8.88,124.71,124.67,28.07411566]
[1764612720301,8.88,124.71,124.69,5.03184942]
[1764612720927,8.88,124.71,124.7,5.03184942]
[1764612721227,8.88,124.73,124.71,8.01860315]
[1764612722135,8.88,124.73,124.71,13.05045257]
[1764612722336,8.88,124.73,124.71,8.01860315]
[1764612723643,75.2,124.74,124.71,13.05045257]
[1764612723850,0.2,124.74,124.72,5.03184942]
[1764612724840,0.2,124.74,124.73,5.03184942]
[1764612725440,0.2,124.74,124.73,13.04916682]
[1764612726448,1e-08,124.74,124.73,26.96101624]
[1764612726640,1e-08,124.74,124.73,27.10317781]
[1764612726851,8.88,124.8,124.73,87.23305834]
[1764612727029,8.88,124.8,124.78,5.03184942]
[1764612727228,75.0,124.82,124.79,5.03184942]
[1764612727429,75.2,124.83,124.75,16.308864]
[1764612727430,75.2,124.83,124.77,28.05161496]
[1764612727649,75.2,124.83,124.8,5.03184942]
[1764612728432,75.2,124.83,124.8,13.96987418]
[1764612728732,0.2,124.83,124.82,13.96987418]
[1764612729353,1e-08,124.84,124.83,35.95064317]
[1764612729665,1e-08,124.85,124.83,21.98076899]
[1764612730468,22.84987419,124.85,124.77,24.08187838]
[1764612730762,8.88000001,124.85,124.81,13.96987418]
[1764612730979,22.84987419,124.85,124.8,13.96987418]
[1764612731671,22.84987419,124.85,124.81,8.01217851]
[1764612731876,75.0,124.84,124.81,8.01217851]
[1764612732677,1e-08,124.85,124.83,13.96987418]
[1764612732964,1e-08,124.85,124.84,13.96987418]
[1764612733282,0.2,124.91,124.85,16.45102557]
[1764612733580,0.2,124.91,124.9,21.9762793]
[1764612734163,0.2,124.91,124.9,8.00640512]
[1764612734367,0.2,124.91,124.9,21.9762793]
[1764612734763,0.2,124.91,124.9,8.00640512]
[1764612734962,0.2,124.91,124.9,21.9762793]
[1764612736274,0.2,124.91,124.88,13.96987418]
[1764612736580,0.2,124.91,124.9,13.96987418]
[1764612736760,0.2,124.91,124.89,13.96987418]
[1764612737567,0.2,124.91,124.9,13.96987418]
[1764612737878,75.0,124.9,124.86,21.97884422]
[1764612738459,75.0,124.9,124.86,8.00897004]
[1764612739100,22.7798191,124.89,124.85,8.00961153]
[1764612739267,8.9,124.88,124.85,8.00961153]
[1764612739992,8.9,124.88,124.85,21.97948571]
[1764612740483,8.9,124.88,124.85,42.00351454]
[1764612741186,8.9,124.88,124.85,28.03364036]
[1764612741489,8.9,124.88,124.85,42.00351454]
[1764612741867,8.9,124.88,124.85,28.03364036]
[1764612742071,88.96987418,124.87,124.84,8.01001174]
[1764612742269,16.308864,124.85,124.83,20.02648757]
[1764612742664,16.308864,124.85,124.82,8.01153661]
[1764612743289,16.308864,124.85,124.82,21.98141079]
[1764612743583,75.0,124.87,124.82,21.98141079]
[1764612743584,8.80994492,124.86,124.82,28.04037814]
[1764612743972,22.7798191,124.86,124.82,28.04037814]
[1764612744374,8.80994492,124.86,124.82,28.04037814]
[1764612744581,75.0,124.87,124.84,13.96987418]
[1764612744763,25.208864,124.88,124.82,28.04037814]
[1764612744764,8.9,124.88,124.85,13.96987418]
[1764612745375,17.70994492,124.9,124.85,13.96987418]
[1764612745583,34.01880892,124.9,124.85,13.96987418]
[1764612746387,34.01880892,124.9,124.86,8.00897004]
[1764612746583,25.208864,124.9,124.86,21.97884422]
[1764612746784,16.308864,124.9,124.87,13.96987418]
[1764612746982,0.2,124.91,124.88,13.96987418]
[1764612747193,0.2,124.91,124.89,13.96987418]
[1764612748074,0.2,124.91,124.9,8.00640512]
[1764612749470,0.2,124.91,124.9,21.9762793]
[1764612750498,0.2,124.91,124.9,8.00640512]
[1764612750797,0.2,124.91,124.9,21.9762793]
[1764612751798,0.2,124.91,124.9,30.8562793]
[1764612752595,0.2,124.93,124.9,42.13445368]
[1764612752798,0.2,124.93,124.92,13.96987418]
[1764612753370,0.2,124.93,124.92,21.97499745]
[1764612754682,0.2,124.94,124.92,42.12996721]
[1764612754999,0.2,124.94,124.93,13.96987418]
[1764612755503,0.2,124.94,124.93,30.87435669]
[1764612755805,1e-08,124.94,124.93,31.01651826]
[1764612756097,1e-08,124.94,124.93,30.87435669]
[1764612756597,0.1,124.95,124.94,14.11203575]
[1764612756598,1e-08,124.95,124.94,14.11203575]
[1764612757185,1e-08,124.95,124.94,0.14216157]
[1764612757398,1e-08,124.95,124.94,14.11203575]
[1764612757598,1e-08,124.95,124.94,22.11587759]
[1764612760314,1e-08,124.97,124.96,16.45102557]
[1764612760494,1e-08,124.97,124.96,39.32089975]
[1764612761189,1e-08,124.97,124.96,39.17873818]
[1764612762000,1e-08,124.97,124.96,47.18129899]
[1764612762198,1e-08,124.97,124.96,47.16129899]
[1764612764524,1e-08,124.97,124.96,42.08061278]
[1764612765011,1e-08,124.97,124.96,42.22277435]
[1764612766015,1e-08,124.97,124.96,42.08061278]
[1764612766610,1e-08,124.97,124.96,33.20061278]
[1764612767910,1e-08,124.97,124.96,42.23196232]
[1764612768709,0.1,124.98,124.97,0.14216157]
[1764612768710,1e-08,124.98,124.97,0.14216157]
[1764612768914,1e-08,124.98,124.97,17.91134954]
[1764612769126,0.1,125.01,125.0,16.308864]
[1764612769315,1e-08,125.03,125.02,8.88918797]
[1764612769510,1e-08,125.03,125.02,25.34021354]
[1764612769725,1e-08,125.03,125.02,34.22021354]
[1764612769916,1e-08,125.03,125.02,34.07805197]
[1764612770112,1e-08,125.03,125.02,16.308864]
[1764612770315,1e-08,125.03,125.02,25.19805197]
[1764612771114,1e-08,125.03,125.02,33.19677217]
[1764612771638,1e-08,125.03,125.02,33.33893374]
[1764612771823,5.12248448,125.1,125.05,16.308864]
[1764612772026,5.12248448,125.1,125.08,8.88918797]
[1764612772331,5.12248448,125.1,125.09,8.88918797]
[1764612772722,5.12248448,125.1,125.08,8.88918797]
[1764612773032,5.12248448,125.1,125.09,42.09229611]
[1764612773808,83.9,125.18,125.09,62.22006804]
[1764612774108,150.21050027,125.24,125.17,8.88918797]
[1764612774312,33.55992914,125.28,125.2,8.88918797]
[1764612774313,8.9,125.25,125.2,8.88918797]
[1764612774522,8.9,125.25,125.16,0.14216157]
[1764612774523,8.9,125.25,125.18,16.308864]
[1764612774737,75.0,125.23,125.19,8.88918797]
[1764612774938,83.9,125.25,125.19,8.88918797]
[1764612775228,83.9,125.25,125.2,8.88918797]
[1764612775534,8.80994492,125.24,125.21,8.88918797]
[1764612775714,8.80994492,125.24,125.2,8.88918797]
[1764612775909,8.80994492,125.24,125.19,27.95715713]
[1764612776132,8.9,125.25,125.23,8.88918797]
[1764612776428,75.0,125.29,125.24,8.88918797]
[1764612776631,75.0,125.29,125.26,8.88918797]
[1764612776848,8.80994492,125.28,125.25,8.88918797]
[1764612777051,75.0,125.29,125.25,8.88918797]
[1764612777758,8.80994492,125.3,125.24,8.9]
[1764612777925,8.9,125.33,125.27,16.308864]
[1764612778121,8.9,125.33,125.22,7.98594473]
[1764612778122,75.0,125.32,125.22,7.98594473]
[1764612778326,75.0,125.3,125.22,33.19480873]
[1764612778526,75.0,125.3,125.26,8.88918797]
[1764612778727,8.80994492,125.29,125.26,8.88918797]
[1764612778938,8.9,125.33,125.28,8.88918797]
[1764612779138,166.308864,125.35,125.29,8.88918797]
[1764612779336,75.0,125.33,125.26,7.98339453]
[1764612779544,8.80994492,125.32,125.27,8.88918797]
[1764612779929,8.80994492,125.32,125.25,8.88918797]
[1764612779930,8.80994492,125.29,125.25,8.88918797]
[1764612780256,8.80994492,125.31,125.26,8.88918797]
[1764612780431,8.80994492,125.31,125.27,8.88918797]
[1764612780632,8.80994492,125.32,125.29,8.88918797]
[1764612780953,0.14216157,125.36,125.3,8.88918797]
[1764612781254,75.0,125.35,125.28,16.308864]
[1764612781456,8.92,125.34,125.3,8.88918797]
[1764612781646,17.72994492,125.34,125.3,8.88918797]
[1764612782233,17.72994492,125.34,125.3,16.86970856]
[1764612782458,8.92,125.33,125.3,7.98052059]
[1764612782650,8.92,125.33,125.3,16.86970856]
[1764612782849,8.92,125.33,125.3,7.98052059]
[1764612783157,8.92,125.33,125.3,16.86970856]
[1764612783342,150.0,125.39,125.32,8.88918797]
[1764612783559,26.61913289,125.38,125.32,8.88918797]
[1764612783883,17.69913289,125.34,125.3,7.98052059]
[1764612784183,83.92,125.33,125.3,7.98052059]
[1764612784381,8.80994492,125.32,125.28,7.98180905]
[1764612784681,17.69913289,125.32,125.28,7.98180905]
[1764612785271,8.80994492,125.34,125.29,8.88918797]
[1764612785468,8.88918797,125.38,125.32,8.88918797]
[1764612785658,8.92,125.36,125.32,8.88918797]
[1764612785853,8.80994492,125.37,125.32,8.88918797]
[1764612786173,8.80994492,125.37,125.3,16.308864]
[1764612786174,8.92,125.36,125.33,8.88918797]
[1764612786368,8.92,125.36,125.34,7.97829902]
[1764612786560,17.72994492,125.37,125.34,7.97829902]
[1764612787449,75.0,125.42,125.34,27.92404658]
[1764612787651,28.820328,125.44,125.37,8.88918797]
[1764612787652,75.0,125.44,125.37,8.88918797]
[1764612787853,17.80918797,125.43,125.37,8.88918797]
[1764612788054,8.88918797,125.41,125.35,8.88918797]
[1764612788360,8.88918797,125.39,125.34,27.92404658]
[1764612788558,8.80994492,125.38,125.34,27.92404658]
[1764612788761,17.80918797,125.37,125.34,7.97829902]
[1764612788963,83.88918797,125.35,125.29,8.88918797]
[1764612789158,8.92,125.34,125.29,8.88918797]
[1764612789358,8.92,125.34,125.3,36.82146986]
[1764612789989,8.92,125.34,125.3,27.93228189]
[1764612790186,17.80918797,125.34,125.3,7.98084596]
[1764612790488,8.92,125.34,125.3,7.98084596]
[1764612791981,8.88918797,125.33,125.3,7.98084596]
[1764612792695,8.92,125.34,125.3,7.98084596]
[1764612792889,17.80918797,125.34,125.3,27.93296088]
[1764612793568,17.80918797,125.34,125.27,9.03134954]
[1764612793569,17.80918797,125.34,125.28,27.93742017]
[1764612793762,8.88918797,125.33,125.28,27.93742017]
[1764612794178,8.88918797,125.32,125.28,27.93742017]
[1764612795392,8.88918797,125.3,125.27,7.98275724]
[1764612795590,17.78918797,125.3,125.27,7.98275724]
[1764612795968,17.78918797,125.3,125.23,8.9]
[1764612795969,8.88918797,125.28,125.25,7.98403193]
[1764612796573,8.88918797,125.27,125.25,7.98403193]
[1764612796774,8.88918797,125.26,125.2,25.77640841]
[1764612797088,8.88918797,125.26,125.21,19.96645635]
[1764612797297,75.0,125.31,125.22,8.88918797]
[1764612797478,8.88918797,125.29,125.23,8.88918797]
[1764612797680,8.9,125.29,125.24,27.94634301]
[1764612797882,8.88918797,125.27,125.24,7.98466943]
[1764612798897,83.9,125.29,125.24,27.94634301]
[1764612798898,8.88918797,125.28,125.24,27.94634301]
[1764612799201,17.78918797,125.29,125.24,27.94634301]
[1764612799403,8.88918797,125.28,125.24,27.94634301]
[1764612799695,8.9,125.29,125.24,19.96167358]
[1764612799696,8.88918797,125.27,125.24,19.96167358]
[1764612800201,8.88918797,125.28,125.24,19.96167358]
[1764612800798,17.78918797,125.29,125.24,19.96167358]
[1764612800993,8.88918797,125.28,125.24,19.96167358]
[1764612801679,8.88918797,125.29,125.24,19.96167358]
[1764612801898,8.88918797,125.3,125.24,19.96167358]
[1764612802408,157.97697792,125.37,125.27,25.19805197]
[1764612802583,8.88918797,125.34,125.28,8.88918797]
[1764612802782,8.88918797,125.34,125.29,8.88918797]
[1764612803190,8.88918797,125.34,125.28,8.88918797]
[1764612803507,8.88918797,125.34,125.28,27.93742017]
[1764612803707,8.88918797,125.34,125.28,36.82660814]
[1764612804499,17.70994492,125.36,125.28,36.82660814]
[1764612804706,8.88918797,125.34,125.28,36.82660814]
[1764612805701,8.88918797,125.34,125.28,27.93742017]
[1764612806104,8.88918797,125.33,125.28,27.93742017]
[1764612806410,17.78918797,125.33,125.28,27.93742017]
[1764612806992,8.88918797,125.32,125.28,27.93742017]
[1764612807194,8.9,125.33,125.28,27.93742017]
[1764612807195,8.88918797,125.31,125.28,27.93742017]
[1764612807395,8.88918797,125.29,125.28,7.98212005]
[1764612807609,8.88918797,125.29,125.25,39.91758923]
[1764612808289,8.88918797,125.28,125.24,27.94634301]
[1764612809091,8.88918797,125.27,125.24,27.94634301]
[1764612809602,8.88918797,125.26,125.24,19.96167358]
[1764612810009,8.88918797,125.25,125.24,19.96167358]
[1764612810310,8.9,125.27,125.23,7.98530703]
[1764612810610,8.88918797,125.25,125.22,7.98567443]
[1764612810809,83.9,125.27,125.22,7.98567443]
[1764612810810,8.88918797,125.24,125.22,7.98567443]
[1764612810989,17.78918797,125.24,125.22,7.98567443]
[1764612811412,8.9,125.24,125.22,7.98567443]
[1764612811616,17.78918797,125.24,125.22,7.98567443]
[1764612811815,8.88918797,125.23,125.19,7.98785845]
[1764612811992,8.88918797,125.22,125.19,7.98785845]
[1764612812494,8.88918797,125.23,125.19,27.95750458]
[1764612812695,17.78918797,125.24,125.19,27.95750458]
[1764612813016,8.88918797,125.23,125.19,27.95750458]
[1764612813193,8.88918797,125.22,125.19,27.95750458]
[1764612813512,8.88918797,125.23,125.19,27.95750458]
[1764612813715,8.88918797,125.23,125.19,19.96964613]
[1764612814042,8.88918797,125.23,125.15,24.00864311]
[1764612814043,8.88918797,125.2,125.15,7.9904115]
[1764612814197,8.88918797,125.18,125.15,27.96558651]
[1764612815035,8.88918797,125.19,125.15,27.96558651]
[1764612815929,8.88918797,125.18,125.15,27.96558651]
[1764612816235,8.88918797,125.18,125.15,7.9904115]
[1764612816406,8.88918797,125.19,125.15,7.9904115]
[1764612816594,8.88918797,125.19,125.15,27.96644026]
[1764612817799,8.88918797,125.16,125.1,7.99360511]
[1764612817999,8.88918797,125.18,125.12,8.88918797]
[1764612818200,17.78918797,125.18,125.12,8.88918797]
[1764612818499,8.80994492,125.21,125.14,8.88918797]
[1764612818704,8.88918797,125.19,125.13,25.19805197]
[1764612819300,8.88918797,125.18,125.13,16.308864]
[1764612819521,17.78918797,125.19,125.13,25.19805197]
[1764612820031,17.78918797,125.19,125.14,27.96867507]
[1764612822239,75.0,125.24,125.15,8.88918797]
[1764612822447,17.78918797,125.23,125.16,16.308864]
[1764612822741,8.88918797,125.2,125.16,16.308864]
[1764612822939,17.78918797,125.2,125.16,16.308864]
[1764612823807,17.78918797,125.2,125.14,67.92392518]
[1764612823808,8.88918797,125.18,125.14,67.92392518]
[1764612824541,13.89452832,125.18,125.14,67.92392518]
[1764612824736,13.89452832,125.19,125.14,67.92392518]
[1764612824913,22.81452832,125.19,125.14,67.92392518]
[1764612825411,13.89452832,125.17,125.14,27.96867507]
[1764612825605,22.81452832,125.16,125.14,27.96867507]
[1764612825805,8.92,125.16,125.14,27.96867507]
[1764612826006,8.92,125.16,125.14,19.97762505]
[1764612826715,13.89452832,125.17,125.14,19.97762505]
[1764612827013,8.80994492,125.2,125.14,33.87215337]
[1764612827014,13.89452832,125.2,125.14,33.87215337]
[1764612827221,8.9,125.19,125.14,33.87215337]
[1764612827522,8.9,125.19,125.16,13.89452832]